[Event "*** Titled Tuesday Blitz"]
[Site "Chess.com"]
[Date "2020.05.05"]
[Round "5"]
[White "Susal_De_Silva"]
[Black "Gyapiking"]
[Result "0-1"]
[WhiteElo "2244"]
[BlackElo "2463"]
[TimeControl "180+1"]
[EndTime "10:56:11 PDT"]
[Termination "Gyapiking won by resignation"]

1. e4 {[%clk 0:03:00.9]} 1... Nc6 {[%clk 0:02:59]} 2. d4 {[%clk 0:02:55.8]} 2...
d5 {[%clk 0:02:57.7]} 3. c4 {[%clk 0:02:46.9]} 3... dxe4 {[%clk 0:02:54.6]} 4.
d5 {[%clk 0:02:45.1]} 4... Ne5 {[%clk 0:02:54.6]} 5. Nc3 {[%clk 0:02:43.7]} 5...
Nf6 {[%clk 0:02:53.1]} 6. Bg5 {[%clk 0:02:38.7]} 6... h6 {[%clk 0:02:50]} 7.
Bxf6 {[%clk 0:02:34.4]} 7... exf6 {[%clk 0:02:49.9]} 8. Nxe4 {[%clk 0:02:31.5]}
8... Bb4+ {[%clk 0:02:49.4]} 9. Nd2 {[%clk 0:02:29.3]} 9... O-O {[%clk
0:02:43.2]} 10. Be2 {[%clk 0:02:25.9]} 10... Re8 {[%clk 0:02:43.2]} 11. Kf1
{[%clk 0:02:20.9]} 11... c6 {[%clk 0:02:38.5]} 12. a3 {[%clk 0:02:15]} 12... Ba5
{[%clk 0:02:34]} 13. b4 {[%clk 0:02:11.2]} 13... Bc7 {[%clk 0:02:33.8]} 14. dxc6
{[%clk 0:02:07.8]} 14... bxc6 {[%clk 0:02:32.9]} 15. Ndf3 {[%clk 0:02:08.4]}
15... Ba6 {[%clk 0:02:26.2]} 16. Qxd8 {[%clk 0:01:53.6]} 16... Raxd8 {[%clk
0:02:25.4]} 17. Rc1 {[%clk 0:01:53.5]} 17... Nxc4 {[%clk 0:02:03.9]} 18. g3
{[%clk 0:01:21.2]} 18... Rxe2 {[%clk 0:01:52]} 19. Nxe2 {[%clk 0:01:16.8]} 19...
Nd2+ {[%clk 0:01:49.4]} 20. Nxd2 {[%clk 0:01:14.3]} 20... Rxd2 {[%clk
0:01:48.5]} 21. Rxc6 {[%clk 0:01:01.5]} 21... Bxe2+ {[%clk 0:01:43.3]} 22. Ke1
{[%clk 0:01:01.2]} 22... Ra2 {[%clk 0:01:40.5]} 23. Rxc7 {[%clk 0:00:58.6]}
23... Bf3 {[%clk 0:01:40.5]} 24. Rxa7 {[%clk 0:00:49.5]} 24... Ra1+ {[%clk
0:01:40.4]} 25. Kd2 {[%clk 0:00:48.9]} 25... Rxh1 {[%clk 0:01:39.5]} 26. b5
{[%clk 0:00:45.1]} 26... g5 {[%clk 0:01:31.2]} 27. a4 {[%clk 0:00:38.3]} 27...
Ra1 {[%clk 0:01:29.7]} 28. a5 {[%clk 0:00:36]} 28... Kg7 {[%clk 0:01:22.9]} 29.
b6 {[%clk 0:00:27.9]} 29... g4 {[%clk 0:01:20.1]} 30. a6 {[%clk 0:00:25.4]}
30... h5 {[%clk 0:01:19.5]} 31. b7 {[%clk 0:00:23.7]} 31... Rb1 {[%clk 0:01:06]}
32. Ra8 {[%clk 0:00:17.2]} 32... Bxb7 {[%clk 0:01:05.2]} 33. Rb8 {[%clk
0:00:13.7]} 33... Be4 {[%clk 0:01:02.5]} 34. a7 {[%clk 0:00:10.8]} 34... Ra1
{[%clk 0:01:00.7]} 0-1

[Event "*** Titled Tuesday Blitz"]
[Site "Chess.com"]
[Date "2020.05.05"]
[Round "5"]
[White "MrRooke6"]
[Black "pandamaster3000"]
[Result "0-1"]
[WhiteElo "2448"]
[BlackElo "2272"]
[TimeControl "180+1"]
[EndTime "10:56:11 PDT"]
[Termination "pandamaster3000 won by resignation"]

1. e4 {[%clk 0:03:00.9]} 1... c5 {[%clk 0:02:58.3]} 2. Nf3 {[%clk 0:02:59]} 2...
d6 {[%clk 0:02:58.7]} 3. d4 {[%clk 0:02:56]} 3... cxd4 {[%clk 0:02:59.6]} 4.
Nxd4 {[%clk 0:02:55.6]} 4... Nf6 {[%clk 0:03:00.2]} 5. Nc3 {[%clk 0:02:55.2]}
5... a6 {[%clk 0:03:00.3]} 6. Bg5 {[%clk 0:02:55.6]} 6... Nbd7 {[%clk
0:02:59.7]} 7. Bc4 {[%clk 0:02:54.8]} 7... e6 {[%clk 0:02:59]} 8. Qd2 {[%clk
0:02:51.2]} 8... Qa5 {[%clk 0:02:57.8]} 9. a3 {[%clk 0:02:48.2]} 9... h6 {[%clk
0:02:54.4]} 10. Bxf6 {[%clk 0:02:47.5]} 10... Nxf6 {[%clk 0:02:54.1]} 11. O-O-O
{[%clk 0:02:46.8]} 11... Be7 {[%clk 0:02:51.7]} 12. f4 {[%clk 0:02:45.6]} 12...
Qc7 {[%clk 0:02:49.4]} 13. Ba2 {[%clk 0:02:42.2]} 13... O-O {[%clk 0:02:47.5]}
14. Rhe1 {[%clk 0:02:38.4]} 14... b5 {[%clk 0:02:45.4]} 15. e5 {[%clk
0:02:38.2]} 15... dxe5 {[%clk 0:02:46.3]} 16. fxe5 {[%clk 0:02:38.7]} 16... Nh7
{[%clk 0:02:35.4]} 17. Kb1 {[%clk 0:02:33.3]} 17... Bb7 {[%clk 0:02:29]} 18.
Bxe6 {[%clk 0:02:25.4]} 18... fxe6 {[%clk 0:02:24.3]} 19. Nxe6 {[%clk
0:02:24.8]} 19... Qc6 {[%clk 0:02:14.4]} 20. Nxf8 {[%clk 0:02:24.1]} 20... Rxf8
{[%clk 0:02:12.1]} 21. Qd7 {[%clk 0:02:20.7]} 21... Bc5 {[%clk 0:01:45.9]} 22.
Qg4 {[%clk 0:02:04.1]} 22... Bc8 {[%clk 0:01:21.4]} 23. e6 {[%clk 0:02:01.5]}
23... Nf6 {[%clk 0:01:19.6]} 24. Qf5 {[%clk 0:01:56.8]} 24... Re8 {[%clk
0:01:15]} 25. Qg6 {[%clk 0:01:51.1]} 25... Bxe6 {[%clk 0:01:03.6]} 26. Ne4
{[%clk 0:01:49.3]} 26... Nxe4 {[%clk 0:01:02.3]} 27. Rxe4 {[%clk 0:01:47.8]}
27... Ba2+ {[%clk 0:00:56.1]} 28. Kxa2 {[%clk 0:01:44.3]} 28... Qxe4 {[%clk
0:00:56.6]} 29. Qxa6 {[%clk 0:01:38.1]} 29... Qc4+ {[%clk 0:00:32.4]} 30. Kb1
{[%clk 0:01:36.5]} 30... Kh7 {[%clk 0:00:19.7]} 31. Qc6 {[%clk 0:01:33.6]} 31...
Re2 {[%clk 0:00:17.4]} 32. Rc1 {[%clk 0:01:29.6]} 32... Be3 {[%clk 0:00:16.9]}
33. Qxc4 {[%clk 0:01:29.3]} 33... bxc4 {[%clk 0:00:17.8]} 34. Rd1 {[%clk
0:01:28.2]} 34... Rxg2 {[%clk 0:00:17]} 35. a4 {[%clk 0:01:28.4]} 35... Rxh2
{[%clk 0:00:16.4]} 36. a5 {[%clk 0:01:28.1]} 36... Rf2 {[%clk 0:00:16.6]} 37.
Rd5 {[%clk 0:01:27.5]} 37... Rf7 {[%clk 0:00:15.4]} 38. b4 {[%clk 0:01:27.1]}
38... g5 {[%clk 0:00:13.3]} 39. b5 {[%clk 0:01:26.9]} 39... g4 {[%clk
0:00:13.3]} 40. b6 {[%clk 0:01:27.3]} 40... g3 {[%clk 0:00:13.1]} 41. a6 {[%clk
0:01:22]} 41... Bxb6 {[%clk 0:00:12.4]} 42. Rd2 {[%clk 0:01:21.5]} 42... Bf2
{[%clk 0:00:11.1]} 43. Kb2 {[%clk 0:01:19.9]} 43... g2 {[%clk 0:00:11.4]} 0-1

[Event "*** Titled Tuesday Blitz"]
[Site "Chess.com"]
[Date "2020.05.05"]
[Round "5"]
[White "Perimir"]
[Black "WinstonSilvakov"]
[Result "1-0"]
[WhiteElo "2356"]
[BlackElo "2182"]
[TimeControl "180+1"]
[EndTime "10:56:11 PDT"]
[Termination "Perimir won by resignation"]

1. e4 {[%clk 0:03:00.9]} 1... Nf6 {[%clk 0:03:00.1]} 2. Nc3 {[%clk 0:03:00.6]}
2... d5 {[%clk 0:02:58.1]} 3. e5 {[%clk 0:03:01.2]} 3... Nfd7 {[%clk 0:02:57.3]}
4. f4 {[%clk 0:03:00.6]} 4... e6 {[%clk 0:02:56.2]} 5. Nf3 {[%clk 0:02:58.9]}
5... c5 {[%clk 0:02:56.6]} 6. Bb5 {[%clk 0:02:58.4]} 6... Nc6 {[%clk 0:02:56.2]}
7. Bxc6 {[%clk 0:02:58.1]} 7... bxc6 {[%clk 0:02:54.6]} 8. d3 {[%clk 0:02:57.1]}
8... Be7 {[%clk 0:02:49.1]} 9. O-O {[%clk 0:02:56.4]} 9... O-O {[%clk
0:02:46.3]} 10. Kh1 {[%clk 0:02:56.4]} 10... a5 {[%clk 0:02:42]} 11. b3 {[%clk
0:02:55.2]} 11... Nb6 {[%clk 0:02:39.8]} 12. Qe2 {[%clk 0:02:52.8]} 12... a4
{[%clk 0:02:25.8]} 13. Bd2 {[%clk 0:02:52.9]} 13... Bb7 {[%clk 0:02:20.4]} 14.
g4 {[%clk 0:02:48.3]} 14... c4 {[%clk 0:02:12.6]} 15. f5 {[%clk 0:02:24.1]}
15... Re8 {[%clk 0:01:50.1]} 16. bxc4 {[%clk 0:01:55.9]} 16... dxc4 {[%clk
0:01:42.3]} 17. Rab1 {[%clk 0:01:56.3]} 17... cxd3 {[%clk 0:01:36]} 18. cxd3
{[%clk 0:01:56.1]} 18... c5 {[%clk 0:01:27.1]} 19. Ne4 {[%clk 0:01:48.1]} 19...
Rb8 {[%clk 0:01:18.6]} 20. f6 {[%clk 0:01:43.6]} 20... Bxe4 {[%clk 0:01:16.6]}
21. Qxe4 {[%clk 0:01:41.4]} 21... gxf6 {[%clk 0:01:03.3]} 22. Ba5 {[%clk
0:00:41.9]} 22... fxe5 {[%clk 0:00:40.1]} 23. Nxe5 {[%clk 0:00:35.3]} 23... Qc7
{[%clk 0:00:16.6]} 24. Rxf7 {[%clk 0:00:32.2]} 1-0

[Event "*** Titled Tuesday Blitz"]
[Site "Chess.com"]
[Date "2020.05.05"]
[Round "5"]
[White "LivajaM"]
[Black "Larina_Marija"]
[Result "1-0"]
[WhiteElo "2269"]
[BlackElo "2141"]
[TimeControl "180+1"]
[EndTime "10:56:11 PDT"]
[Termination "LivajaM won by checkmate"]

1. d4 {[%clk 0:03:00.9]} 1... f5 {[%clk 0:02:59.8]} 2. g3 {[%clk 0:03:00.8]}
2... Nf6 {[%clk 0:02:59.8]} 3. Bg2 {[%clk 0:03:00.9]} 3... g6 {[%clk 0:02:59.9]}
4. Nh3 {[%clk 0:03:00.3]} 4... Bg7 {[%clk 0:02:59.1]} 5. O-O {[%clk 0:03:00.4]}
5... O-O {[%clk 0:02:58.6]} 6. c4 {[%clk 0:03:00.6]} 6... d6 {[%clk 0:02:58.8]}
7. Nc3 {[%clk 0:03:00.3]} 7... e5 {[%clk 0:02:57.5]} 8. dxe5 {[%clk 0:02:59.4]}
8... dxe5 {[%clk 0:02:57.9]} 9. Qb3 {[%clk 0:02:58.5]} 9... c6 {[%clk
0:02:41.3]} 10. Rd1 {[%clk 0:02:57.5]} 10... Qe7 {[%clk 0:02:38.9]} 11. Be3
{[%clk 0:02:47.6]} 11... Na6 {[%clk 0:02:33]} 12. Rd2 {[%clk 0:02:46.3]} 12...
Ng4 {[%clk 0:02:28.4]} 13. Bg5 {[%clk 0:02:45.7]} 13... Qf7 {[%clk 0:02:24.1]}
14. Rad1 {[%clk 0:02:40.9]} 14... Be6 {[%clk 0:02:20.8]} 15. Qa3 {[%clk
0:02:35]} 15... h6 {[%clk 0:02:16.5]} 16. Bd8 {[%clk 0:02:34.4]} 16... Bxc4
{[%clk 0:02:06.1]} 17. Rd7 {[%clk 0:02:32.9]} 17... Qe6 {[%clk 0:01:58.8]} 18.
b3 {[%clk 0:02:31.6]} 18... Bd5 {[%clk 0:01:46.3]} 19. Bxd5 {[%clk 0:02:30.3]}
19... cxd5 {[%clk 0:01:46.1]} 20. R1xd5 {[%clk 0:02:30.4]} 20... Nf6 {[%clk
0:01:21.9]} 21. R5d6 {[%clk 0:02:28.9]} 21... Raxd8 {[%clk 0:01:02.6]} 22. Rxg7+
{[%clk 0:02:16.4]} 22... Kxg7 {[%clk 0:01:00.6]} 23. Rxe6 {[%clk 0:02:16.6]}
23... Rc8 {[%clk 0:00:39.3]} 24. Re7+ {[%clk 0:02:14.7]} 24... Kg8 {[%clk
0:00:37.1]} 25. Nb5 {[%clk 0:02:13]} 25... Rfd8 {[%clk 0:00:34.1]} 26. Rxb7
{[%clk 0:02:04.4]} 26... Nc5 {[%clk 0:00:29.1]} 27. Rc7 {[%clk 0:02:01.1]} 27...
Rd1+ {[%clk 0:00:25.9]} 28. Kg2 {[%clk 0:02:00.9]} 28... Rxc7 {[%clk 0:00:24.4]}
29. Nxc7 {[%clk 0:01:59.5]} 29... Nfd7 {[%clk 0:00:20.5]} 30. Qxa7 {[%clk
0:01:56.5]} 30... e4 {[%clk 0:00:19.6]} 31. Nf4 {[%clk 0:01:55.2]} 31... g5
{[%clk 0:00:18.9]} 32. Nfe6 {[%clk 0:01:54.8]} 32... Nxe6 {[%clk 0:00:17]} 33.
Nxe6 {[%clk 0:01:54.8]} 33... Kf7 {[%clk 0:00:16.2]} 34. Nd8+ {[%clk 0:01:54.9]}
34... Ke8 {[%clk 0:00:15.8]} 35. Nc6 {[%clk 0:01:53.2]} 35... f4 {[%clk
0:00:08.7]} 36. Ne5 {[%clk 0:01:52.1]} 36... Nxe5 {[%clk 0:00:06.7]} 37. Qb8+
{[%clk 0:01:52.1]} 37... Kf7 {[%clk 0:00:06.6]} 38. Qxe5 {[%clk 0:01:52.7]}
38... fxg3 {[%clk 0:00:05.2]} 39. hxg3 {[%clk 0:01:52.3]} 39... Rd2 {[%clk
0:00:03.6]} 40. Qxe4 {[%clk 0:01:48.3]} 40... Rxa2 {[%clk 0:00:03.1]} 41. Qh7+
{[%clk 0:01:48]} 41... Kf6 {[%clk 0:00:01.3]} 42. Qxh6+ {[%clk 0:01:48.3]} 42...
Kf5 {[%clk 0:00:01.8]} 43. e3 {[%clk 0:01:47.1]} 43... Kg4 {[%clk 0:00:02.1]}
44. Qh3# {[%clk 0:01:44.2]} 1-0

[Event "*** Titled Tuesday Blitz"]
[Site "Chess.com"]
[Date "2020.05.05"]
[Round "5"]
[White "CrushingKings"]
[Black "GoValya"]
[Result "1-0"]
[WhiteElo "2444"]
[BlackElo "2176"]
[TimeControl "180+1"]
[EndTime "10:56:12 PDT"]
[Termination "CrushingKings won by resignation"]

1. e4 {[%clk 0:03:00.9]} 1... e6 {[%clk 0:02:59.9]} 2. Nf3 {[%clk 0:02:59.7]}
2... d5 {[%clk 0:02:59.1]} 3. Nc3 {[%clk 0:02:59.7]} 3... c5 {[%clk 0:02:56.5]}
4. exd5 {[%clk 0:02:58.8]} 4... exd5 {[%clk 0:02:56.3]} 5. Bb5+ {[%clk
0:02:59.3]} 5... Nc6 {[%clk 0:02:56.4]} 6. O-O {[%clk 0:02:57.9]} 6... Nf6
{[%clk 0:02:53.4]} 7. Re1+ {[%clk 0:02:50.5]} 7... Be7 {[%clk 0:02:53]} 8. d4
{[%clk 0:02:31.8]} 8... O-O {[%clk 0:02:47.8]} 9. h3 {[%clk 0:02:26.6]} 9... a6
{[%clk 0:02:25]} 10. Bxc6 {[%clk 0:02:25.3]} 10... bxc6 {[%clk 0:02:25.2]} 11.
Ne5 {[%clk 0:02:22.4]} 11... Bb7 {[%clk 0:02:02]} 12. Na4 {[%clk 0:01:47.9]}
12... cxd4 {[%clk 0:01:53.6]} 13. Qxd4 {[%clk 0:01:47.8]} 13... Qa5 {[%clk
0:01:53.4]} 14. Bd2 {[%clk 0:01:44.3]} 14... Qb5 {[%clk 0:01:47.2]} 15. Nd7
{[%clk 0:00:58.3]} 15... Rfe8 {[%clk 0:01:09.5]} 16. Rxe7 {[%clk 0:00:57.3]}
16... Rxe7 {[%clk 0:01:07]} 17. Nxf6+ {[%clk 0:00:57.7]} 17... gxf6 {[%clk
0:01:05.1]} 18. Bc3 {[%clk 0:00:58.2]} 18... Re6 {[%clk 0:00:58.2]} 19. Nc5
{[%clk 0:00:55.7]} 19... Rae8 {[%clk 0:00:42.7]} 20. Nd7 {[%clk 0:00:46.4]}
20... c5 {[%clk 0:00:25.2]} 21. Qg4+ {[%clk 0:00:45.5]} 21... Kh8 {[%clk
0:00:23.9]} 22. Bxf6+ {[%clk 0:00:43.2]} 22... Rxf6 {[%clk 0:00:22.1]} 23. Nxf6
{[%clk 0:00:44.1]} 23... Rf8 {[%clk 0:00:14.1]} 24. Qf5 {[%clk 0:00:38.2]} 24...
Kg7 {[%clk 0:00:13]} 25. Qg5+ {[%clk 0:00:38.2]} 25... Kh8 {[%clk 0:00:12.6]}
26. Qh6 {[%clk 0:00:38.5]} 1-0

[Event "*** Titled Tuesday Blitz"]
[Site "Chess.com"]
[Date "2020.05.05"]
[Round "5"]
[White "hazy13"]
[Black "fabianvivasz"]
[Result "0-1"]
[WhiteElo "2181"]
[BlackElo "2358"]
[TimeControl "180+1"]
[EndTime "10:56:12 PDT"]
[Termination "fabianvivasz won by checkmate"]

1. d4 {[%clk 0:03:00.9]} 1... Nf6 {[%clk 0:02:59.7]} 2. c4 {[%clk 0:03:01.4]}
2... g6 {[%clk 0:03:00]} 3. Nc3 {[%clk 0:03:01.8]} 3... d5 {[%clk 0:03:00.5]} 4.
Nf3 {[%clk 0:03:01.6]} 4... Bg7 {[%clk 0:03:00.2]} 5. Bf4 {[%clk 0:03:02.2]}
5... O-O {[%clk 0:02:54]} 6. e3 {[%clk 0:03:02.3]} 6... c5 {[%clk 0:02:52.5]} 7.
dxc5 {[%clk 0:03:03.2]} 7... Ne4 {[%clk 0:02:42.5]} 8. Be5 {[%clk 0:02:45.9]}
8... f6 {[%clk 0:02:23.9]} 9. cxd5 {[%clk 0:02:18.8]} 9... Nxf2 {[%clk 0:02:17]}
10. Kxf2 {[%clk 0:02:12.3]} 10... fxe5 {[%clk 0:02:17.3]} 11. Bd3 {[%clk
0:01:55.6]} 11... Nd7 {[%clk 0:01:59.6]} 12. c6 {[%clk 0:01:43.8]} 12... Nf6
{[%clk 0:01:46.9]} 13. Re1 {[%clk 0:01:37.2]} 13... Nxd5 {[%clk 0:01:10.5]} 14.
cxb7 {[%clk 0:01:24.6]} 14... Bxb7 {[%clk 0:01:06.2]} 15. Bc4 {[%clk 0:01:12]}
15... e6 {[%clk 0:01:05.6]} 16. Qb3 {[%clk 0:00:51.4]} 16... Rb8 {[%clk
0:00:53.9]} 17. Rad1 {[%clk 0:00:50.4]} 17... e4 {[%clk 0:00:38.8]} 18. Nxe4
{[%clk 0:00:42.2]} 18... Qh4+ {[%clk 0:00:38.1]} 19. Ng3 {[%clk 0:00:41.7]}
19... Rxf3+ {[%clk 0:00:29.2]} 20. gxf3 {[%clk 0:00:39.5]} 20... Qxh2+ {[%clk
0:00:28.6]} 21. Kf1 {[%clk 0:00:37]} 21... Qxg3 {[%clk 0:00:28.3]} 22. e4 {[%clk
0:00:30.1]} 22... Rf8 {[%clk 0:00:18.5]} 23. Rd3 {[%clk 0:00:20.2]} 23... Nf4
{[%clk 0:00:17.2]} 24. Rde3 {[%clk 0:00:20.4]} 24... Qg2# {[%clk 0:00:16.7]} 0-1

[Event "*** Titled Tuesday Blitz"]
[Site "Chess.com"]
[Date "2020.05.05"]
[Round "5"]
[White "Witik"]
[Black "SantoBlue"]
[Result "1-0"]
[WhiteElo "2632"]
[BlackElo "2854"]
[TimeControl "180+1"]
[EndTime "10:56:13 PDT"]
[Termination "Witik won by resignation"]

1. d4 {[%clk 0:03:00.9]} 1... d5 {[%clk 0:02:59.2]} 2. c4 {[%clk 0:02:58]} 2...
c6 {[%clk 0:02:59.6]} 3. Nc3 {[%clk 0:02:58]} 3... Nf6 {[%clk 0:02:59.5]} 4. e3
{[%clk 0:02:58]} 4... e6 {[%clk 0:02:51.4]} 5. Nf3 {[%clk 0:02:57.5]} 5... Nbd7
{[%clk 0:02:52]} 6. Bd3 {[%clk 0:02:57.3]} 6... dxc4 {[%clk 0:02:51.9]} 7. Bxc4
{[%clk 0:02:58.2]} 7... b5 {[%clk 0:02:52.7]} 8. Be2 {[%clk 0:02:58.5]} 8... b4
{[%clk 0:02:53.6]} 9. Na4 {[%clk 0:02:58.2]} 9... Bb7 {[%clk 0:02:53.9]} 10. O-O
{[%clk 0:02:56.6]} 10... c5 {[%clk 0:02:48.8]} 11. a3 {[%clk 0:02:55.3]} 11...
cxd4 {[%clk 0:02:45.5]} 12. Nxd4 {[%clk 0:02:19.2]} 12... Be7 {[%clk 0:02:35.5]}
13. axb4 {[%clk 0:02:15.8]} 13... Bxb4 {[%clk 0:02:34.1]} 14. b3 {[%clk
0:02:05.3]} 14... O-O {[%clk 0:02:33.8]} 15. Bb2 {[%clk 0:02:03.8]} 15... a5
{[%clk 0:02:31.9]} 16. Bf3 {[%clk 0:01:50.1]} 16... Bxf3 {[%clk 0:02:27.1]} 17.
Qxf3 {[%clk 0:01:45.2]} 17... Ne5 {[%clk 0:02:27.3]} 18. Qe2 {[%clk 0:01:34]}
18... Qd5 {[%clk 0:02:20.6]} 19. Rfd1 {[%clk 0:01:29.5]} 19... Qe4 {[%clk
0:02:04.5]} 20. f3 {[%clk 0:01:18.5]} 20... Qg6 {[%clk 0:01:53.3]} 21. Nxe6
{[%clk 0:01:11.9]} 21... Nxf3+ {[%clk 0:01:53.3]} 22. Qxf3 {[%clk 0:01:11.1]}
22... fxe6 {[%clk 0:01:54.2]} 23. Bxf6 {[%clk 0:00:43.2]} 23... Qxf6 {[%clk
0:01:50.9]} 24. Qxf6 {[%clk 0:00:42.8]} 24... gxf6 {[%clk 0:01:51.8]} 25. Nb6
{[%clk 0:00:40.2]} 25... Rad8 {[%clk 0:01:47.7]} 26. Nd7 {[%clk 0:00:31.2]}
26... Bc3 {[%clk 0:01:40.1]} 27. Nxf8 {[%clk 0:00:24.4]} 27... Rxf8 {[%clk
0:01:41]} 28. Rac1 {[%clk 0:00:23.7]} 28... Bb4 {[%clk 0:01:41.7]} 29. Rd7
{[%clk 0:00:20.5]} 29... Rb8 {[%clk 0:01:22.7]} 30. Rcc7 {[%clk 0:00:20]} 30...
Bf8 {[%clk 0:01:23.4]} 31. Rb7 {[%clk 0:00:18]} 31... Rc8 {[%clk 0:01:23.4]} 32.
Kf2 {[%clk 0:00:17.3]} 32... h5 {[%clk 0:01:22.7]} 33. Kf3 {[%clk 0:00:17.6]}
33... Rc5 {[%clk 0:01:23]} 34. Rb8 {[%clk 0:00:15.1]} 34... Rf5+ {[%clk
0:01:20.8]} 35. Ke2 {[%clk 0:00:14.9]} 35... Rd5 {[%clk 0:01:16.9]} 36. Rxd5
{[%clk 0:00:13.9]} 36... exd5 {[%clk 0:01:17.8]} 37. Rd8 {[%clk 0:00:14.1]}
37... Kf7 {[%clk 0:01:18.7]} 38. Rxd5 {[%clk 0:00:14.1]} 38... h4 {[%clk
0:01:19.6]} 39. Rxa5 {[%clk 0:00:13.8]} 39... Bd6 {[%clk 0:01:20.5]} 40. Ra6
{[%clk 0:00:13.8]} 40... Bxh2 {[%clk 0:01:20.4]} 41. b4 {[%clk 0:00:14.3]} 41...
Bg3 {[%clk 0:01:21.3]} 42. b5 {[%clk 0:00:14]} 42... Ke7 {[%clk 0:01:22.2]} 43.
Kf3 {[%clk 0:00:13.7]} 43... Kd7 {[%clk 0:01:23.1]} 44. Rxf6 {[%clk 0:00:13.3]}
44... Bc7 {[%clk 0:01:23.3]} 45. Rf7+ {[%clk 0:00:13.4]} 45... Kd6 {[%clk
0:01:23.8]} 46. Rxc7 {[%clk 0:00:14.3]} 46... Kxc7 {[%clk 0:01:24.7]} 47. Kg4
{[%clk 0:00:14.8]} 47... h3 {[%clk 0:01:25.1]} 48. gxh3 {[%clk 0:00:15.1]} 48...
Kd6 {[%clk 0:01:25.3]} 49. Kg5 {[%clk 0:00:16]} 49... Ke7 {[%clk 0:01:26.2]} 1-0

[Event "*** Titled Tuesday Blitz"]
[Site "Chess.com"]
[Date "2020.05.05"]
[Round "5"]
[White "pouya21"]
[Black "DenishevM"]
[Result "1-0"]
[WhiteElo "2787"]
[BlackElo "2591"]
[TimeControl "180+1"]
[EndTime "10:56:14 PDT"]
[Termination "pouya21 won by resignation"]

1. d4 {[%clk 0:03:00.9]} 1... Nf6 {[%clk 0:02:59]} 2. c4 {[%clk 0:03:00.7]} 2...
b6 {[%clk 0:02:55.7]} 3. f3 {[%clk 0:02:58]} 3... Nc6 {[%clk 0:02:51.3]} 4. Nc3
{[%clk 0:02:52.5]} 4... e5 {[%clk 0:02:47.5]} 5. d5 {[%clk 0:02:52.6]} 5... Ne7
{[%clk 0:02:47.1]} 6. e4 {[%clk 0:02:52.2]} 6... Ng6 {[%clk 0:02:46.6]} 7. h4
{[%clk 0:02:52.3]} 7... h5 {[%clk 0:02:39.3]} 8. Nge2 {[%clk 0:02:36.2]} 8...
Bc5 {[%clk 0:02:05]} 9. a3 {[%clk 0:02:29.4]} 9... a5 {[%clk 0:01:48.5]} 10. Na4
{[%clk 0:02:27]} 10... Be7 {[%clk 0:01:42]} 11. Be3 {[%clk 0:02:24.4]} 11... d6
{[%clk 0:01:34.6]} 12. g3 {[%clk 0:02:20.4]} 12... Nd7 {[%clk 0:01:25.1]} 13.
Bh3 {[%clk 0:02:11.9]} 13... Ba6 {[%clk 0:01:15.1]} 14. b3 {[%clk 0:01:56.3]}
14... b5 {[%clk 0:01:14.6]} 15. cxb5 {[%clk 0:01:55.6]} 15... Bxb5 {[%clk
0:01:15.5]} 16. Rc1 {[%clk 0:01:51.1]} 16... O-O {[%clk 0:01:05.3]} 17. Kf2
{[%clk 0:01:43.8]} 17... Rb8 {[%clk 0:00:36.3]} 18. Qc2 {[%clk 0:01:40.9]} 18...
Rb7 {[%clk 0:00:35.3]} 19. Nb2 {[%clk 0:01:23.5]} 19... Nb6 {[%clk 0:00:27.1]}
20. Nc3 {[%clk 0:01:20]} 20... Ba6 {[%clk 0:00:25.5]} 21. a4 {[%clk 0:01:20.2]}
21... Bxh4 {[%clk 0:00:18.1]} 22. gxh4 {[%clk 0:01:14.9]} 22... Qxh4+ {[%clk
0:00:19]} 23. Kg1 {[%clk 0:01:13.6]} 23... Qf6 {[%clk 0:00:11.3]} 24. Bf5 {[%clk
0:01:10.5]} 24... Nf4 {[%clk 0:00:10.5]} 25. Bxf4 {[%clk 0:01:08.8]} 25... exf4
{[%clk 0:00:11.4]} 26. Rxh5 {[%clk 0:01:08.6]} 26... g6 {[%clk 0:00:11]} 27. Qg2
{[%clk 0:01:09.1]} 27... Qd4+ {[%clk 0:00:09.6]} 28. Kh2 {[%clk 0:01:07.3]}
28... Qg7 {[%clk 0:00:02.8]} 29. Rg5 {[%clk 0:01:00.7]} 29... Nc8 {[%clk
0:00:01.9]} 30. Bxg6 {[%clk 0:00:59.2]} 30... f6 {[%clk 0:00:02.5]} 31. Bh7+
{[%clk 0:00:58]} 1-0

[Event "*** Titled Tuesday Blitz"]
[Site "Chess.com"]
[Date "2020.05.05"]
[Round "5"]
[White "northridgehawk"]
[Black "beatnoguera"]
[Result "1-0"]
[WhiteElo "2280"]
[BlackElo "1844"]
[TimeControl "180+1"]
[EndTime "10:56:15 PDT"]
[Termination "northridgehawk won by checkmate"]

1. e4 {[%clk 0:03:00.8]} 1... e6 {[%clk 0:02:58.7]} 2. Nc3 {[%clk 0:02:59.5]}
2... d5 {[%clk 0:02:56.7]} 3. Nf3 {[%clk 0:02:59.9]} 3... c5 {[%clk 0:02:47.5]}
4. d4 {[%clk 0:02:57.9]} 4... cxd4 {[%clk 0:02:45]} 5. Nxd4 {[%clk 0:02:57.7]}
5... dxe4 {[%clk 0:02:42.5]} 6. Nxe4 {[%clk 0:02:55.5]} 6... a6 {[%clk
0:02:40.3]} 7. Bd3 {[%clk 0:02:54]} 7... Nf6 {[%clk 0:02:36.9]} 8. Nxf6+ {[%clk
0:02:50.2]} 8... Qxf6 {[%clk 0:02:34.7]} 9. O-O {[%clk 0:02:50]} 9... Be7 {[%clk
0:02:31.2]} 10. Nf3 {[%clk 0:02:49.7]} 10... O-O {[%clk 0:02:30.2]} 11. Bg5
{[%clk 0:02:49.7]} 11... Qxb2 {[%clk 0:02:23]} 12. Bxe7 {[%clk 0:02:49.2]} 12...
Re8 {[%clk 0:02:23]} 13. Rb1 {[%clk 0:02:27.7]} 13... Qxa2 {[%clk 0:02:18.8]}
14. Bh4 {[%clk 0:02:03.1]} 14... Nc6 {[%clk 0:02:15.6]} 15. Ng5 {[%clk
0:01:57.4]} 15... h6 {[%clk 0:02:10.2]} 16. Qh5 {[%clk 0:01:30.4]} 16... e5
{[%clk 0:02:08.8]} 17. Qxf7+ {[%clk 0:01:29.3]} 17... Qxf7 {[%clk 0:02:07.2]}
18. Nxf7 {[%clk 0:01:29.5]} 18... Kxf7 {[%clk 0:02:06.4]} 19. Rfe1 {[%clk
0:01:28.9]} 19... g5 {[%clk 0:01:52.9]} 20. Bg3 {[%clk 0:01:28.5]} 20... b5
{[%clk 0:01:48.5]} 21. Be4 {[%clk 0:01:22.7]} 21... Bb7 {[%clk 0:01:48.2]} 22.
c4 {[%clk 0:01:21.6]} 22... Rab8 {[%clk 0:01:28.4]} 23. cxb5 {[%clk 0:01:21.5]}
23... axb5 {[%clk 0:01:28.2]} 24. Rxb5 {[%clk 0:01:21.6]} 24... Re7 {[%clk
0:01:18.3]} 25. h4 {[%clk 0:01:19.7]} 25... Rc8 {[%clk 0:01:03.3]} 26. hxg5
{[%clk 0:01:17.8]} 26... hxg5 {[%clk 0:01:02.8]} 27. Bd5+ {[%clk 0:01:03.3]}
27... Kf6 {[%clk 0:01:01.1]} 28. Reb1 {[%clk 0:00:59]} 28... Ba8 {[%clk
0:01:00.1]} 29. Rb6 {[%clk 0:00:56.1]} 29... Rec7 {[%clk 0:00:56.8]} 30. Re1
{[%clk 0:00:53.4]} 30... Kf5 {[%clk 0:00:49]} 31. f3 {[%clk 0:00:49.5]} 31...
Nd4 {[%clk 0:00:48.9]} 32. Be4+ {[%clk 0:00:48.8]} 32... Bxe4 {[%clk 0:00:42.5]}
33. Rxe4 {[%clk 0:00:48.8]} 33... Rc1+ {[%clk 0:00:40.1]} 34. Be1 {[%clk
0:00:46]} 34... Nc2 {[%clk 0:00:31.5]} 35. g4# {[%clk 0:00:45.9]} 1-0